[Event "Championnat National du Sénégal"]
[Site "Arène National, Pikine, Senegal"]
[Date "2022.11.20"]
[Round "8.1"]
[White "Diop, Wara"]
[Black "Koné, Sidy"]
[Result "1/2-1/2"]
[TimeControl "01.30 fb .30"]
[WhiteElo "1636"]
[BlackElo "1400"]

1. e4 {[%clk 01:30:47]} {[%emt 00:00:12]} c5 {[%clk 01:27:27]} {[%emt
00:04:03]} 2. f4 {[%clk 01:29:42]} {[%emt 00:01:35]} Nc6 {[%clk 01:26:51]}
{[%emt 00:01:07]} 3. Nc3 {[%clk 01:30:03]} {[%emt 00:00:09]} g6 {[%clk
01:27:06]} {[%emt 00:00:14]} 4. Nf3 {[%clk 01:30:13]} {[%emt 00:00:20]} Bg7
{[%clk 01:27:22]} {[%emt 00:00:14]} 5. Bc4 {[%clk 01:30:16]} {[%emt 00:00:27]}
e6 {[%clk 01:27:42]} {[%emt 00:00:10]} 6. O-O {[%clk 01:29:55]} {[%emt
00:00:50]} Nge7 {[%clk 01:27:56]} {[%emt 00:00:17]} 7. Qe1 {[%clk 01:29:32]}
{[%emt 00:00:52]} d5 {[%clk 01:27:03]} {[%emt 00:01:23]} 8. exd5 {[%clk
01:29:16]} {[%emt 00:00:46]} exd5 {[%clk 01:25:08]} {[%emt 00:02:26]} 9. Nxd5
{[%clk 01:28:56]} {[%emt 00:00:49]} O-O {[%clk 01:25:02]} {[%emt 00:00:36]} 10.
Nxe7+ {[%clk 01:28:12]} {[%emt 00:01:13]} Nxe7 {[%clk 01:24:50]} {[%emt
00:00:43]} 11. d3 {[%clk 01:27:15]} {[%emt 00:01:26]} Nf5 {[%clk 01:23:49]}
{[%emt 00:01:32]} 12. c3 {[%clk 01:26:12]} {[%emt 00:01:32]} a6 {[%clk
01:19:46]} {[%emt 00:04:34]} 13. a4 {[%clk 01:26:07]} {[%emt 00:00:35]} Re8
{[%clk 01:15:32]} {[%emt 00:04:44]} 14. Ne5 {[%clk 01:25:15]} {[%emt 00:01:20]}
Be6 {[%clk 01:15:28]} {[%emt 00:00:35]} 15. Qf2 {[%clk 01:17:39]} {[%emt
00:08:05]} Bxc4 {[%clk 01:11:25]} {[%emt 00:04:35]} 16. dxc4 {[%clk 01:16:59]}
{[%emt 00:01:09]} Bxe5 {[%clk 01:05:56]} {[%emt 00:06:01]} 17. fxe5 {[%clk
01:17:12]} {[%emt 00:00:16]} Rxe5 {[%clk 01:05:23]} {[%emt 00:01:03]} 18. Bf4
{[%clk 01:06:46]} {[%emt 00:10:55]} Re6 {[%clk 00:57:24]} {[%emt 00:08:29]} 19.
g4 {[%clk 01:05:22]} {[%emt 00:01:53]} Ng7 {[%clk 00:53:57]} {[%emt 00:03:59]}
20. Qxc5 {[%clk 01:02:46]} {[%emt 00:03:04]} Qb6 {[%clk 00:52:23]} {[%emt
00:02:05]} 21. Qxb6 {[%emt 00:01:26]} Rxb6 {[%emt 00:00:13]} 22. Rf2 {[%clk
01:00:37]} {[%emt 00:01:01]} Rc8 {[%clk 00:50:12]} {[%emt 00:02:40]} 23. c5
{[%clk 01:00:08]} {[%emt 00:01:01]} Rb3 {[%clk 00:44:02]} {[%emt 00:06:40]} 24.
Rd1 {[%clk 00:58:09]} {[%emt 00:02:29]} Ne6 {[%clk 00:43:37]} {[%emt 00:00:55]}
25. Be3 {[%clk 00:47:50]} {[%emt 00:10:49]} Rd8 {[%clk 00:33:25]} {[%emt
00:10:42]} 26. Rd6 {[%clk 00:44:37]} {[%emt 00:03:43]} b5 {[%clk 00:23:50]}
{[%emt 00:10:06]} 27. Rfd2 {[%clk 00:42:06]} {[%emt 00:03:01]} Rc8 {[%clk
00:20:51]} {[%emt 00:03:30]} 28. axb5 {[%clk 00:35:57]} {[%emt 00:06:38]} axb5
{[%clk 00:18:21]} {[%emt 00:03:01]} 29. c6 {[%clk 00:33:35]} {[%emt 00:02:52]}
b4 {[%clk 00:17:19]} {[%emt 00:01:32]} 30. Bd4 {[%clk 00:32:47]} {[%emt
00:01:16]} Nxd4 {[%clk 00:13:55]} {[%emt 00:03:55]} 31. cxd4 {[%clk 00:32:19]}
{[%emt 00:00:56]} Re3 {[%clk 00:12:06]} {[%emt 00:02:21]} 32. d5 {[%clk
00:31:34]} {[%emt 00:01:14]} Re1+ {[%clk 00:12:00]} {[%emt 00:00:36]} 33. Kg2
{[%clk 00:31:21]} {[%emt 00:00:44]} Rc1 {[%clk 00:12:05]} {[%emt 00:00:24]} 34.
Rf6 {[%clk 00:28:14]} {[%emt 00:03:37]} Rd8 {[%clk 00:08:24]} {[%emt 00:04:12]}
35. Rf4 {[%clk 00:26:21]} {[%emt 00:02:22]} Rxc6 {[%clk 00:06:07]} {[%emt
00:02:46]} 36. Rxb4 {[%clk 00:21:41]} {[%emt 00:05:11]} Rcd6 {[%clk 00:06:06]}
{[%emt 00:00:32]} 37. Rb5 {[%clk 00:19:37]} {[%emt 00:02:34]} g5 {[%clk
00:05:10]} {[%emt 00:01:27]} 38. h3 {[%clk 00:15:47]} {[%emt 00:04:19]} h6
{[%clk 00:04:34]} {[%emt 00:01:06]} 39. b4 {[%clk 00:15:01]} {[%emt 00:01:16]}
Kg7 {[%clk 00:02:23]} {[%emt 00:02:41]} 40. Kf3 {[%clk 00:14:28]} {[%emt
00:01:02]} Rc8 {[%clk 00:01:01]} {[%emt 00:01:52]} 41. Ke4 {[%clk 00:10:50]}
{[%emt 00:04:06]} f6 {[%clk 00:28:41]} {[%emt 00:02:53]} 42. Kd4 {[%clk
00:40:40]} {[%emt 00:00:38]} Rc1 {[%clk 00:25:31]} {[%emt 00:03:42]} 43. Rc5
{[%clk 00:40:23]} {[%emt 00:00:46]} Rb1 {[%clk 00:21:39]} {[%emt 00:04:22]} 44.
Kc4 {[%clk 00:40:28]} {[%emt 00:00:24]} Kg6 {[%clk 00:20:01]} {[%emt 00:02:11]}
45. Rc6 {[%clk 00:40:31]} {[%emt 00:00:25]} Rc1+ {[%clk 00:16:54]} {[%emt
00:03:37]} 46. Kb5 {[%clk 00:39:31]} {[%emt 00:01:29]} Rcxc6 {[%clk 00:16:57]}
{[%emt 00:00:28]} 47. dxc6 {[%emt 00:01:08]} Rxd2 {[%emt 00:00:12]} 48. c7
{[%clk 00:38:33]} {[%emt 00:00:09]} Rc2 {[%clk 00:16:22]} {[%emt 00:01:04]} 49.
Kb6 {[%clk 00:38:31]} {[%emt 00:00:32]} f5 {[%clk 00:06:13]} {[%emt 00:10:39]}
50. gxf5 {[%clk 00:38:07]} {[%emt 00:00:54]} Kxf5 {[%clk 00:06:32]} {[%emt
00:00:11]} 51. Kb7 {[%clk 00:38:28]} {[%emt 00:00:09]} g4 {[%clk 00:06:48]}
{[%emt 00:00:14]} 52. hxg4+ {[%clk 00:37:57]} {[%emt 00:01:01]} Kxg4 {[%clk
00:07:06]} {[%emt 00:00:11]} 53. c8=Q+ {[%clk 00:37:47]} {[%emt 00:00:39]} Rxc8
{[%clk 00:07:12]} {[%emt 00:00:25]} 54. Kxc8 {[%clk 00:38:02]} {[%emt
00:00:15]} h5 {[%clk 00:07:27]} {[%emt 00:00:15]} 55. b5 {[%clk 00:38:11]}
{[%emt 00:00:21]} h4 {[%clk 00:07:39]} {[%emt 00:00:17]} 56. b6 {[%clk
00:38:04]} {[%emt 00:00:38]} h3 {[%clk 00:07:41]} {[%emt 00:00:28]} 57. b7
{[%clk 00:37:49]} {[%emt 00:00:46]} h2 {[%emt 00:01:14]} 1/2-1/2

[Event "Championnat National du Sénégal"]
[Site "Arène National, Pikine, Senegal"]
[Date "2022.11.20"]
[Round "8.5"]
[White "Diatta, Robert Kaundum A."]
[Black "Valerevna, Nadezhda Marochkina"]
[Result "0-1"]
[TimeControl "01.30 fb .30"]
[WhiteElo "1635"]
[BlackElo "1668"]

1. b3 {[%clk 01:28:00]} {[%emt 00:00:48]} d5 {[%clk 01:30:10]} {[%emt
00:00:51]} 2. Ba3 {[%clk 01:28:08]} {[%emt 00:00:21]} Nf6 {[%clk 01:30:12]}
{[%emt 00:00:28]} 3. d4 {[%clk 01:26:35]} {[%emt 00:02:02]} Bf5 {[%clk
01:28:11]} {[%emt 00:02:31]} 4. Nf3 {[%clk 01:20:17]} {[%emt 00:06:49]} Nbd7
{[%clk 01:28:02]} {[%emt 00:00:39]} 5. g3 {[%clk 01:19:47]} {[%emt 00:01:00]}
g6 {[%clk 01:24:32]} {[%emt 00:04:01]} 6. Nh4 {[%clk 01:19:46]} {[%emt
00:00:30]} Be6 {[%clk 01:24:12]} {[%emt 00:00:50]} 7. Bg2 {[%clk 01:18:46]}
{[%emt 00:01:30]} Bg7 {[%clk 01:24:33]} {[%emt 00:00:09]} 8. O-O {[%clk
01:18:25]} {[%emt 00:00:50]} Nb6 {[%clk 01:20:04]} {[%emt 00:05:00]} 9. f4
{[%clk 01:17:58]} {[%emt 00:00:56]} Qd7 {[%clk 01:19:07]} {[%emt 00:01:27]} 10.
Nc3 {[%clk 01:15:39]} {[%emt 00:02:49]} Bh3 {[%clk 01:17:43]} {[%emt 00:01:54]}
11. Na4 {[%clk 01:14:21]} {[%emt 00:01:49]} Nxa4 {[%clk 01:12:43]} {[%emt
00:05:30]} 12. Bxh3 {[%clk 01:14:24]} {[%emt 00:00:26]} Qxh3 {[%clk 01:12:25]}
{[%emt 00:00:47]} 13. bxa4 {[%clk 01:14:52]} {[%emt 00:00:03]} Ng4 {[%clk
01:12:05]} {[%emt 00:00:49]} 14. Nf3 {[%clk 01:14:40]} {[%emt 00:00:42]} Ne3
{[%clk 01:12:13]} {[%emt 00:00:23]} 15. Qd3 {[%clk 01:15:08]} {[%emt 00:00:02]}
Qg2# {[%clk 01:12:36]} {[%emt 00:00:07]} 0-1

[ePGN "0.1;DGT LiveChess/2.2"]

[Event "Championnat National du Sénégal"]
[Site "Arène National, Pikine, Senegal"]
[Date "????.??.??"]
[Round "9.4"]
[White "CM Wane, Al Hassane"]
[Black "Diankha, Bara"]
[Result "0-1"]
[TimeControl "01.30 fb .30"]
[WhiteElo "1789"]
[BlackElo "1400"]

1. d4 {[%clk 01:30:58]} {[%emt 00:00:01]} d5 {[%clk 01:30:39]} {[%emt
00:00:21]} 2. c4 {[%clk 01:31:21]} {[%emt 00:00:07]} c6 {[%clk 01:30:33]}
{[%emt 00:00:35]} 3. Nf3 {[%clk 01:31:43]} {[%emt 00:00:10]} Nf6 {[%clk
01:30:35]} {[%emt 00:00:27]} 4. Bf4 {[%clk 01:32:07]} {[%emt 00:00:06]} dxc4
{[%clk 01:29:47]} {[%emt 00:01:18]} 5. e3 {[%clk 01:32:14]} {[%emt 00:00:22]}
b5 {[%clk 01:29:20]} {[%emt 00:00:57]} 6. a4 {[%clk 01:32:33]} {[%emt
00:00:12]} Qa5+ {[%clk 01:29:02]} {[%emt 00:00:48]} 7. Nc3 {[%clk 01:31:28]}
{[%emt 00:01:35]} b4 {[%clk 01:26:57]} {[%emt 00:02:34]} 8. Nb1 {[%clk
01:30:04]} {[%emt 00:01:55]} Ba6 {[%clk 01:24:50]} {[%emt 00:02:36]} 9. Ne5
{[%clk 01:30:09]} {[%emt 00:00:25]} c3 {[%clk 01:19:52]} {[%emt 00:05:28]} 10.
Bxa6 {[%clk 01:30:09]} {[%emt 00:00:31]} cxb2 {[%clk 01:19:46]} {[%emt
00:00:35]} 11. Ra2 {[%clk 01:29:53]} {[%emt 00:00:44]} b3+ {[%clk 01:20:09]}
{[%emt 00:00:08]} 12. Qd2 {[%clk 01:26:06]} {[%emt 00:04:17]} Qxd2+ {[%clk
01:20:04]} {[%emt 00:00:35]} 13. Kxd2 {[%clk 01:25:30]} {[%emt 00:01:06]} bxa2
{[%clk 01:20:05]} {[%emt 00:00:29]} 14. Bc4 {[%clk 01:22:54]} {[%emt 00:03:06]}
a1=Q {[%clk 01:17:33]} {[%emt 00:03:01]} 15. Bxf7+ {[%clk 01:23:13]} {[%emt
00:00:13]} Kd8 {[%clk 01:17:34]} {[%emt 00:00:27]} 16. Bb3 {[%clk 01:23:42]}
Ne4+ {[%clk 01:13:30]} {[%emt 00:04:35]} 17. Kc2 {[%clk 01:24:00]} {[%emt
00:00:12]} Nd6 {[%clk 01:13:08]} {[%emt 00:00:52]} 18. Nd3 {[%clk 01:24:07]}
{[%emt 00:00:23]} Na6 {[%clk 01:11:15]} {[%emt 00:02:23]} 19. Nxb2 {[%clk
01:22:51]} {[%emt 00:01:45]} Nb4+ {[%clk 01:10:51]} {[%emt 00:00:55]} 20. Kc3
{[%clk 01:22:42]} {[%emt 00:00:39]} Ne4+ {[%clk 01:10:41]} {[%emt 00:00:40]} 21.
Kxb4 {[%clk 01:22:44]} {[%emt 00:00:28]} e5+ {[%clk 01:09:05]} {[%emt
00:02:05]} 22. Kc4 {[%clk 01:22:21]} {[%emt 00:00:53]} exf4 {[%clk 01:07:30]}
{[%emt 00:02:06]} 23. Nd3 {[%clk 01:19:38]} {[%emt 00:03:12]} Nd2+ {[%clk
01:07:20]} {[%emt 00:00:40]} 0-1

[Event "Championnat National du Sénégal"]
[Site "Arène National, Pikine, Senegal"]
[Date "????.??.??"]
[Round "9.3"]
[White "Ba, El Hadji Seydou Nourou"]
[Black "Ly, Abdoulaye Aziz"]
[Result "1-0"]
[TimeControl "01.30 fb .30"]
[WhiteElo "1644"]
[BlackElo "1400"]

1. e4 {[%clk 01:30:57]} {[%emt 00:00:03]} e5 {[%clk 01:30:53]} {[%emt
00:00:07]} 2. Nf3 {[%clk 01:31:22]} {[%emt 00:00:04]} Nc6 {[%clk 01:31:17]}
{[%emt 00:00:06]} 3. Bb5 {[%clk 01:31:37]} {[%emt 00:00:15]} a6 {[%clk
01:31:17]} {[%emt 00:00:30]} 4. Ba4 {[%clk 01:31:58]} {[%emt 00:00:09]} Nf6
{[%clk 01:31:26]} {[%emt 00:00:21]} 5. d3 {[%clk 01:30:44]} {[%emt 00:01:44]}
Bc5 {[%clk 01:31:08]} {[%emt 00:00:47]} 6. Bxc6 {[%emt 00:01:34]} dxc6 {[%emt
00:00:11]} 7. Nbd2 {[%clk 01:29:08]} {[%emt 00:00:23]} O-O {[%clk 01:31:12]}
{[%emt 00:00:26]} 8. Nc4 {[%clk 01:28:05]} {[%emt 00:01:33]} Re8 {[%clk
01:30:44]} {[%emt 00:00:56]} 9. Qe2 {[%clk 01:27:06]} {[%emt 00:01:30]} Bg4
{[%clk 01:30:17]} {[%emt 00:00:56]} 10. h3 {[%clk 01:24:44]} {[%emt 00:02:53]}
Bxf3 {[%clk 01:30:27]} {[%emt 00:00:20]} 11. Qxf3 {[%clk 01:25:03]} {[%emt
00:00:10]} Nd7 {[%clk 01:24:08]} {[%emt 00:06:51]} 12. O-O {[%clk 01:19:28]}
{[%emt 00:06:05]} Re6 {[%clk 01:23:58]} {[%emt 00:00:40]} 13. Be3 {[%clk
01:18:12]} {[%emt 00:01:46]} Qh4 {[%clk 01:23:00]} {[%emt 00:01:27]} 14. Bxc5
{[%clk 01:13:16]} {[%emt 00:05:27]} Nxc5 {[%clk 01:23:30]} {[%emt 00:00:01]} 15.
Qe3 {[%clk 01:13:10]} {[%emt 00:00:36]} Nd7 {[%clk 01:22:38]} {[%emt 00:01:21]}
16. f4 {[%clk 01:11:56]} {[%emt 00:01:43]} Rg6 {[%clk 01:19:22]} {[%emt
00:03:48]} 17. Nxe5 {[%clk 01:07:31]} {[%emt 00:04:55]} Nxe5 {[%clk 01:17:10]}
{[%emt 00:02:42]} 18. fxe5 {[%clk 01:07:33]} {[%emt 00:00:27]} Re8 {[%clk
01:17:17]} {[%emt 00:00:24]} 19. Rf5 {[%clk 00:59:14]} {[%emt 00:08:49]} Rg3
{[%clk 01:16:17]} {[%emt 00:01:26]} 20. Qf2 {[%clk 00:58:57]} {[%emt 00:00:50]}
Qxh3 {[%clk 01:15:56]} {[%emt 00:00:51]} 21. Rf1 {[%clk 00:56:50]} {[%emt
00:02:36]} h5 {[%clk 01:14:12]} {[%emt 00:02:15]} 22. Rxf7 {[%clk 00:54:09]}
{[%emt 00:03:11]} Rxe5 {[%clk 01:13:22]} {[%emt 00:01:20]} 23. Rxg7+ {[%clk
00:51:16]} {[%emt 00:03:23]} Kxg7 {[%clk 01:10:46]} {[%emt 00:03:06]} 24. Qf6+
{[%clk 00:35:48]} {[%emt 00:15:58]} Kh7 {[%clk 01:08:54]} {[%emt 00:02:22]} 25.
Qf7+ {[%clk 00:35:11]} {[%emt 00:01:07]} Kh6 {[%clk 01:07:03]} {[%emt
00:02:20]} 26. Qf8+ {[%clk 00:24:46]} {[%emt 00:10:55]} Kg6 {[%clk 01:05:31]}
{[%emt 00:02:03]} 27. Qg8+ {[%clk 00:24:05]} {[%emt 00:01:09]} Kh6 {[%emt
00:03:00]} 28. Qf7 {[%emt 00:00:01]} Kg5 {[%emt 00:00:01]} 29. Qf3 {[%emt
00:00:11]} 1-0

[Event "Championnat National du Sénégal"]
[Site "Arène National, Pikine, Senegal"]
[Date "????.??.??"]
[Round "9.5"]
[White "Koné, Sidy"]
[Black "Bodin-Hulin, Thomas"]
[Result "0-1"]
[TimeControl "01.30 fb .30"]
[WhiteElo "1400"]
[BlackElo "1838"]

1. e4 {[%clk 01:30:56]} {[%emt 00:00:03]} e6 {[%clk 01:30:45]} {[%emt
00:00:17]} 2. d4 {[%clk 01:31:18]} {[%emt 00:00:07]} d5 {[%clk 01:31:12]}
{[%emt 00:00:03]} 3. Nd2 {[%clk 01:31:42]} {[%emt 00:00:06]} dxe4 {[%clk
01:31:23]} {[%emt 00:00:20]} 4. Nxe4 {[%clk 01:32:02]} {[%emt 00:00:09]} Nd7
{[%clk 01:31:51]} {[%emt 00:00:02]} 5. Nf3 {[%clk 01:32:11]} {[%emt 00:00:21]}
Ngf6 {[%clk 01:32:14]} {[%emt 00:00:08]} 6. Nxf6+ {[%clk 01:32:22]} {[%emt
00:00:19]} Nxf6 {[%clk 01:32:37]} {[%emt 00:00:07]} 7. c3 {[%clk 01:32:38]}
{[%emt 00:00:14]} Be7 {[%clk 01:32:50]} {[%emt 00:00:17]} 8. Bd3 {[%clk
01:32:35]} {[%emt 00:00:32]} O-O {[%clk 01:33:03]} {[%emt 00:00:17]} 9. O-O
{[%clk 01:32:31]} {[%emt 00:00:33]} c5 {[%clk 01:32:10]} {[%emt 00:01:24]} 10.
h3 {[%clk 01:30:43]} {[%emt 00:02:18]} cxd4 {[%clk 01:27:07]} {[%emt 00:05:33]}
11. Nxd4 {[%clk 01:30:19]} {[%emt 00:00:53]} e5 {[%clk 01:20:04]} {[%emt
00:07:33]} 12. Nf5 {[%clk 01:27:54]} {[%emt 00:02:55]} Bc5 {[%clk 01:14:01]}
{[%emt 00:06:33]} 13. Be3 {[%clk 01:24:34]} {[%emt 00:03:48]} Qb6 {[%clk
01:06:24]} {[%emt 00:08:09]} 14. Bxc5 {[%clk 01:23:28]} {[%emt 00:01:36]} Qxc5
{[%clk 01:06:51]} {[%emt 00:00:04]} 15. Ng3 {[%clk 01:18:21]} {[%emt 00:05:36]}
Be6 {[%clk 00:54:37]} {[%emt 00:12:45]} 16. Ne4 {[%clk 01:17:14]} {[%emt
00:01:36]} Nxe4 {[%clk 00:53:30]} {[%emt 00:01:37]} 17. Bxe4 {[%clk 01:15:17]}
{[%emt 00:02:27]} f5 {[%clk 00:53:13]} {[%emt 00:00:48]} 18. Bc2 {[%emt
00:06:45]} Rad8 {[%clk 00:48:28]} 19. Qf3 {[%clk 01:10:47]} {[%emt 00:04:00]}
Rd2 {[%clk 00:42:18]} {[%emt 00:06:40]} 20. Bb3 {[%clk 00:58:54]} {[%emt
00:12:23]} Bxb3 {[%clk 00:40:55]} {[%emt 00:01:53]} 21. axb3 {[%clk 00:59:11]}
{[%emt 00:00:13]} e4 {[%clk 00:39:59]} {[%emt 00:01:27]} 22. Qe3 {[%clk
00:57:51]} {[%emt 00:01:49]} Qxe3 {[%clk 00:38:36]} {[%emt 00:01:53]} 23. fxe3
{[%clk 00:58:13]} {[%emt 00:00:07]} Rxb2 {[%clk 00:33:00]} {[%emt 00:06:06]} 24.
Rxa7 {[%clk 00:56:24]} {[%emt 00:02:19]} Rxb3 {[%clk 00:33:11]} {[%emt
00:00:19]} 25. Rc1 {[%clk 00:54:35]} {[%emt 00:02:19]} g5 {[%clk 00:32:22]}
{[%emt 00:01:20]} 26. Rc2 {[%clk 00:49:46]} {[%emt 00:05:17]} Kg7 {[%clk
00:26:26]} {[%emt 00:06:28]} 27. Kf2 {[%clk 00:47:35]} {[%emt 00:02:40]} Rd8
{[%clk 00:21:52]} {[%emt 00:05:03]} 28. Ra5 {[%clk 00:45:44]} {[%emt 00:02:20]}
Kg6 {[%clk 00:19:26]} {[%emt 00:02:58]} 29. Re5 {[%clk 00:44:01]} {[%emt
00:02:11]} Rd1 {[%clk 00:18:57]} {[%emt 00:01:00]} 30. Re6+ {[%clk 00:43:42]}
{[%emt 00:00:49]} Kf7 {[%clk 00:18:24]} {[%emt 00:01:04]} 31. Re5 {[%clk
00:43:31]} {[%emt 00:00:41]} Kf6 {[%clk 00:18:49]} {[%emt 00:00:05]} 32. Re8
{[%clk 00:42:48]} {[%emt 00:01:12]} Rbb1 {[%clk 00:18:45]} {[%emt 00:00:35]} 33.
Re2 {[%clk 00:33:03]} {[%emt 00:10:15]} Rf1+ {[%clk 00:16:17]} {[%emt
00:02:58]} 34. Kg3 {[%clk 00:33:12]} {[%emt 00:00:21]} h5 {[%clk 00:16:13]}
{[%emt 00:00:34]} 35. Kh2 {[%clk 00:17:39]} {[%emt 00:16:02]} Rh1+ {[%clk
00:16:24]} {[%emt 00:00:20]} 36. Kg3 {[%emt 00:01:12]} Rhf1 {[%emt 00:00:02]}
37. h4 {[%emt 00:00:02]} gxh4+ {[%emt 00:00:02]} 38. Kxh4 {[%emt 00:00:01]}
Rh1+ {[%emt 00:00:01]} 39. Kg3 {[%emt 00:00:02]} h4+ {[%emt 00:00:02]} 40. Kf2
{[%emt 00:00:01]} Rbf1# 0-1

[Event "Championnat National du Sénégal"]
[Site "Arène National, Pikine, Senegal"]
[Date "????.??.??"]
[Round "9.1"]
[White "Valerevna, Nadezhda Marochkina"]
[Black "Diop, Wara"]
[Result "1/2-1/2"]
[TimeControl "01.30 fb .30"]
[WhiteElo "1668"]
[BlackElo "1636"]

1. d4 {[%clk 01:30:57]} {[%emt 00:00:02]} Nf6 {[%clk 01:28:34]} {[%emt
00:02:27]} 2. c4 {[%clk 01:31:16]} {[%emt 00:00:11]} d5 {[%clk 01:28:48]}
{[%emt 00:00:15]} 3. Nf3 {[%clk 01:31:16]} {[%emt 00:00:30]} dxc4 {[%clk
01:25:19]} {[%emt 00:03:59]} 4. Nc3 {[%clk 01:30:48]} {[%emt 00:00:58]} c5
{[%clk 01:25:18]} {[%emt 00:00:32]} 5. d5 {[%clk 01:25:10]} {[%emt 00:06:09]}
e6 {[%clk 01:25:07]} {[%emt 00:00:40]} 6. e4 {[%clk 01:23:07]} {[%emt
00:02:34]} exd5 {[%clk 01:23:40]} {[%emt 00:01:57]} 7. exd5 {[%clk 01:17:36]}
{[%emt 00:06:00]} a6 {[%clk 01:21:51]} {[%emt 00:02:19]} 8. a4 {[%clk
01:17:21]} {[%emt 00:00:46]} Bd6 {[%clk 01:21:14]} {[%emt 00:01:06]} 9. Bxc4
{[%clk 01:17:07]} {[%emt 00:00:44]} O-O {[%clk 01:20:46]} {[%emt 00:00:58]} 10.
O-O {[%clk 01:17:30]} {[%emt 00:00:08]} Bg4 {[%clk 01:20:00]} {[%emt 00:01:16]}
11. Bg5 {[%clk 01:17:30]} {[%emt 00:00:29]} Nbd7 {[%clk 01:19:22]} {[%emt
00:01:09]} 12. Ne4 {[%clk 01:10:37]} {[%emt 00:07:23]} Be5 {[%clk 01:11:00]}
{[%emt 00:08:52]} 13. Qb3 {[%clk 01:08:34]} {[%emt 00:02:33]} Bxf3 {[%clk
01:02:05]} {[%emt 00:09:25]} 14. Qxf3 {[%clk 01:07:30]} {[%emt 00:01:31]} Qb6
{[%clk 01:00:13]} {[%emt 00:02:24]} 15. Nxf6+ {[%clk 01:05:56]} {[%emt
00:02:04]} Nxf6 {[%clk 00:55:35]} {[%emt 00:05:09]} 16. Bxf6 {[%clk 01:05:35]}
{[%emt 00:00:52]} Bxf6 {[%clk 00:52:41]} {[%emt 00:03:23]} 17. Rab1 {[%clk
01:04:19]} {[%emt 00:01:47]} Qb4 {[%clk 00:49:59]} {[%emt 00:03:13]} 18. Qb3
{[%clk 01:01:54]} {[%emt 00:02:55]} Qxb3 {[%clk 00:49:23]} {[%emt 00:01:06]} 19.
Bxb3 {[%clk 01:02:17]} {[%emt 00:00:07]} b5 {[%clk 00:49:44]} {[%emt 00:00:08]}
20. Bc2 {[%clk 00:53:37]} {[%emt 00:09:08]} Rfe8 {[%clk 00:49:22]} {[%emt
00:00:54]} 21. Rfd1 {[%clk 00:51:51]} {[%emt 00:02:16]} Bd4 {[%clk 00:47:32]}
{[%emt 00:02:20]} 22. Kf1 {[%clk 00:49:22]} {[%emt 00:02:59]} Rad8 {[%clk
00:45:16]} {[%emt 00:02:47]} 23. b4 {[%clk 00:46:33]} {[%emt 00:03:20]} bxa4
{[%clk 00:37:59]} {[%emt 00:07:47]} 24. Bxa4 {[%clk 00:42:51]} {[%emt
00:04:12]} Re5 {[%clk 00:36:06]} {[%emt 00:02:20]} 25. Bc6 {[%clk 00:41:04]}
{[%emt 00:02:17]} Kf8 {[%clk 00:34:52]} {[%emt 00:01:45]} 26. bxc5 {[%clk
00:41:02]} {[%emt 00:00:32]} Bxc5 {[%clk 00:33:54]} {[%emt 00:01:23]} 27. Ra1
{[%clk 00:41:15]} {[%emt 00:00:21]} Rb8 {[%clk 00:31:19]} {[%emt 00:03:05]} 28.
Ra5 {[%clk 00:33:58]} {[%emt 00:07:42]} Bd6 {[%clk 00:29:00]} {[%emt 00:02:52]}
29. Rxa6 {[%clk 00:29:41]} {[%emt 00:04:49]} Ke7 {[%clk 00:25:32]} {[%emt
00:03:57]} 30. Raa1 {[%clk 00:19:53]} {[%emt 00:10:18]} Bc5 {[%clk 00:24:16]}
{[%emt 00:01:47]} 31. Rab1 {[%clk 00:18:17]} {[%emt 00:02:07]} Rxb1 {[%clk
00:20:17]} {[%emt 00:04:29]} 32. Rxb1 {[%clk 00:18:34]} {[%emt 00:00:13]} Rf5
{[%clk 00:20:10]} {[%emt 00:00:37]} 33. f3 {[%clk 00:18:42]} {[%emt 00:00:22]}
g5 {[%clk 00:20:17]} {[%emt 00:00:23]} 34. Re1+ {[%clk 00:16:45]} {[%emt
00:02:24]} Kd6 {[%clk 00:20:02]} {[%emt 00:00:47]} 35. Re4 {[%clk 00:16:05]}
{[%emt 00:01:09]} Rf6 {[%clk 00:17:42]} {[%emt 00:02:51]} 36. Ke2 {[%clk
00:15:29]} {[%emt 00:01:05]} h5 {[%clk 00:18:04]} {[%emt 00:00:09]} 37. h3
{[%clk 00:14:38]} {[%emt 00:01:21]} Rf4 {[%clk 00:14:38]} {[%emt 00:03:55]} 38.
g3 {[%clk 00:13:01]} {[%emt 00:02:07]} Rf6 {[%clk 00:14:15]} {[%emt 00:00:53]}
39. h4 {[%clk 00:10:51]} {[%emt 00:02:40]} Rg6 {[%clk 00:13:14]} {[%emt
00:01:33]} 40. Kd3 {[%clk 00:03:33]} {[%emt 00:07:47]} Bf2 {[%clk 00:10:38]}
{[%emt 00:03:07]} 41. g4 {[%clk 00:01:57]} {[%emt 00:02:07]} gxh4 {[%clk
00:07:27]} {[%emt 00:03:41]} 42. Ke2 {[%clk 00:30:05]} {[%emt 00:02:23]} Bg3
{[%clk 00:37:12]} {[%emt 00:00:44]} 43. Kf1 {[%clk 00:29:17]} {[%emt 00:01:18]}
hxg4 {[%clk 00:36:55]} {[%emt 00:00:46]} 44. Rxg4 {[%clk 00:29:05]} {[%emt
00:00:43]} Rf6 {[%clk 00:35:36]} {[%emt 00:01:49]} 45. Kg2 {[%clk 00:28:57]}
{[%emt 00:00:38]} Rf5 {[%clk 00:35:25]} {[%emt 00:00:41]} 46. Re4 {[%clk
00:27:51]} {[%emt 00:01:35]} Rg5 {[%clk 00:33:09]} {[%emt 00:02:47]} 47. Kh3
{[%clk 00:27:37]} {[%emt 00:00:42]} Rg8 {[%clk 00:32:25]} {[%emt 00:01:14]} 48.
Re8 {[%clk 00:27:30]} {[%emt 00:00:37]} Rg7 {[%clk 00:30:48]} {[%emt 00:02:07]}
49. Rd8+ {[%clk 00:24:01]} {[%emt 00:03:56]} Kc5 {[%clk 00:30:30]} {[%emt
00:00:53]} 50. Rd7 {[%clk 00:24:10]} {[%emt 00:00:18]} Rh7 {[%clk 00:28:34]}
{[%emt 00:02:28]} 51. Re7 {[%clk 00:24:14]} {[%emt 00:00:23]} Rg7 {[%clk
00:28:16]} {[%emt 00:00:53]} 52. Be8 {[%clk 00:22:32]} {[%emt 00:02:10]} Kxd5
{[%clk 00:25:11]} {[%emt 00:03:36]} 53. Rxf7 {[%clk 00:22:42]} {[%emt
00:00:20]} Rxf7 {[%clk 00:23:34]} {[%emt 00:02:07]} 54. Bxf7+ {[%clk 00:23:09]}
{[%emt 00:00:03]} Ke5 {[%emt 00:00:33]} 1/2-1/2